Cogmind - Beta 16 @@@ ROGUE MODE // 2025.10.30 @ 09:07:23 Player: morimori Result: Destroyed by G-67 Veteran with Field Laser Performance ------------- Evolutions (6) 3000 Regions Visited (21) 4200 Robots Destroyed (189) 945 Value Destroyed (6898) 6898 Prototype IDs (221) 4420 Alien Tech Used (0) 0 Bonus (5464) 5464 TOTAL SCORE: 24927 Bonus ------- Follower Combat Kills 263 Met Data Miner 300 Used Data Conduit 3000 Met Warlord at Base 500 MAIN.C Attacked Warlord 500 Warlord Defense Kills 1616 Friendly Fire -715 Cogmind --------- Core Integrity 0/1150 Matter 239/300 Energy 156/700 System Corruption 3% Temperature Cool (9) Movement Walking (190) Ox1 Location -4/Armory Parts ------- > --- POWER (2) -------- Vortex Chain Reactor > --- PROPULSION (5) --- Advanced Medium Treads Flexi-carbon Leg Flexi-carbon Leg Flexi-carbon Leg Myomer Leg > --- UTILITY (8) ------ Advanced Heat Sink Advanced Heat Sink Advanced Heat Sink High-capacity Storage Unit Long-range Sensor Array Advanced Signal Interpreter Long-range Terrain Scanner Hacking Suite > --- WEAPON (4) ------- Tesla Rifle Heavy Laser Gamma Bomb Array RU-N14's Throwing Claymores v3 > --- INVENTORY (20) --- Light Antimatter Reactor Advanced Heat Sink Advanced Energy Well (500) Experimental Core Analyzer Improved Armor Integrity Analyzer Precision Energy Filter Hardened Heavy Armor Plating Hardened Heavy Armor Plating Improved Medium Armor Plating Experimental Focal Shield Authchip [Processor] Authchip [Processor] Vortex Driver (9) Vortex Driver (6) RU-N14's Throwing Claymores v3 (5) RU-N14's Throwing Claymores v3 (4) Peak State ------------ > --- POWER ------------ Neutrino Core Improved Quantum Reactor > --- PROPULSION ------- Myomer Leg Enhanced Biometal Leg Enhanced Biometal Leg Experimental Myomer Leg Experimental Myomer Leg > --- UTILITY ---------- Advanced Heat Sink High-capacity Storage Unit Long-range Sensor Array Advanced Signal Interpreter Makeshift Salvage Targeting Computer Medium Insulated Plating Hacking Suite System Mapper > --- WEAPON ----------- Heavy Beamcaster Phase Gun Nova Cannon Helical Railgun > --- INVENTORY -------- Vortex Chain Reactor Flexi-carbon Leg Advanced Heat Sink Advanced Heat Sink Long-range Terrain Scanner Experimental Core Analyzer Improved Armor Integrity Analyzer Experimental Utility Shielding Experimental Focal Shield Authchip [Processor] Authchip [Processor] Advanced System Restoration Module Matter Neutralizer Vortex Driver Vortex Driver RU-N14's Throwing Claymores v3 RU-N14's Throwing Claymores v3 RU-N14's Throwing Claymores v3 RU-N14's Throwing Claymores v3 [Rating: 141] Favorites ----------- Power Heavy Ion Engine Engine Heavy Ion Engine Power Core Neutrino Core Reactor Improved Quantum Reactor Propulsion Light Treads Treads Light Treads Leg Experimental Myomer Leg Wheel Armored Huge Wheel Hover Unit Airjet Utility Hacking Suite Device Improved Heat Sink Storage High-capacity Storage Unit Processor Advanced Signal Interpreter Hackware Hacking Suite Protection Light Armor Plating Weapon Spread Laser Energy Gun Spread Laser Energy Cannon Heavy Ion Cannon Ballistic Gun Flak Gun Ballistic Cannon Advanced Assault Cannon Launcher Missile Launcher Special Weapon RU-N14's Throwing Claymores v3 Impact Weapon Impact Mace Slashing Weapon Great Axe Piercing Weapon Lance Build | -11 -10 -10 -9 -8 -7 -7 -7 -7 -7 -7 -6 -6 -6 -6 -5 -5 -5 -5 -4 -4 -4 ------- Run | Yrd Mat Min Mat Mat Fac Was Fac Low Low Dat Pro Fac Low Low Fac Upp Upp War Pro Fac Arm Slots Evolved 12 | . . . 2 2 2 . . . . . . 2 . . 2 . . . . 2 . Power 1 | . . . . . . . . . . . . . . . . . . . . 1 . Propulsion 3 | . . . . 2 1 . . . . . . . . . . . . . . . . Utility 6 | . . . 2 . 1 . . . . . . 1 . . 2 . . . . . . Weapon 2 | . . . . . . . . . . . . 1 . . . . . . . 1 . Parts Attached 165 | 7 13 5 16 16 15 3 7 3 2 1 1 8 . . 1 5 . 18 5 19 20 Power 17 | 1 4 1 1 1 1 . . . . . . . . . . . . 3 . 2 3 Engine 9 | 1 4 1 1 1 1 . . . . . . . . . . . . . . . . Core 3 | . . . . . . . . . . . . . . . . . . 1 . 1 1 Reactor 5 | . . . . . . . . . . . . . . . . . . 2 . 1 2 Propulsion 46 | 2 3 2 4 5 6 . 2 1 . 1 . 2 . . . 2 . 8 . 1 7 Treads 15 | 2 1 2 4 4 . . . . . . . . . . . 1 . . . . 1 Leg 14 | . . . . 1 . . . . . . . . . . . . . 7 . . 6 Wheel 4 | . 2 . . . . . . . . . . . . . . 1 . . . 1 . Hover 13 | . . . . . 6 . 2 1 . 1 . 2 . . . . . 1 . . . Flight . | . . . . . . . . . . . . . . . . . . . . . . Utility 47 | 2 2 2 6 4 5 . 1 1 . . 1 4 . . 1 3 . 1 3 7 4 Device 24 | 1 1 2 3 2 1 . . 1 . . . . . . . 1 . . 2 6 4 Storage 5 | 1 1 . 1 . 1 . . . . . 1 . . . . . . . . . . Processor 5 | . . . . . 1 . 1 . . . . . . . . 2 . 1 . . . Hackware 6 | . . . . . 2 . . . . . . 3 . . 1 . . . . . . Protection 7 | . . . 2 2 . . . . . . . 1 . . . . . . 1 1 . Artifact . | . . . . . . . . . . . . . . . . . . . . . . Weapon 55 | 2 4 . 5 6 3 3 4 1 2 . . 2 . . . . . 6 2 9 6 Energy Gun 24 | 1 3 . 4 5 . . . . . . . . . . . . . 1 1 5 4 Energy Cannon 8 | . . . . . . . . . 1 . . 1 . . . . . 2 . 4 . Ballistic Gun 9 | 1 1 . . 1 2 1 1 . 1 . . . . . . . . 1 . . . Ballistic Cannon 2 | . . . . . . . 1 . . . . 1 . . . . . . . . . Launcher 5 | . . . 1 . 1 1 1 . . . . . . . . . . . . . 1 Special Weapon 4 | . . . . . . . . . . . . . . . . . . 2 1 . 1 Impact Weapon 1 | . . . . . . . 1 . . . . . . . . . . . . . . Slashing Weapon 1 | . . . . . . . . 1 . . . . . . . . . . . . . Piercing Weapon 1 | . . . . . . 1 . . . . . . . . . . . . . . . Special Melee Weapon . | . . . . . . . . . . . . . . . . . . . . . . Unidentified Prototypes 12 | . . . 1 4 1 . 1 . . . . 3 . . . . . 2 . . . Parts Lost 51 | . 4 1 1 2 . . . 2 . . . 6 . . 7 . 1 . 2 20 5 Power 3 | . 1 . . . . . . . . . . . . . 1 . . . . 1 . Propulsion 21 | . 2 . . . . . . 2 . . . 4 . . 3 . 1 . . 7 2 Utility 14 | . . 1 . 1 . . . . . . . 1 . . 1 . . . 2 6 2 Weapon 13 | . 1 . 1 1 . . . . . . . 1 . . 2 . . . . 6 1 Highest Loss Streak 11 | . 3 1 1 2 . . . 1 . . . 3 . . 7 . 1 . 1 11 2 To Critical Strikes 1 | . . . . . . . . . . . . . . . 1 . . . . . . Average Backups 16 | 1 12 19 22 24 15 15 14 14 14 15 15 10 5 5 4 4 5 13 18 18 17 Power 1 | . 3 2 2 2 1 1 1 1 1 1 1 . . . . . 1 1 2 1 . Propulsion 1 | . . . 4 6 1 1 . . . . 1 . . . . . . . 1 . . Utility 8 | . 5 8 9 11 8 10 10 10 10 10 9 6 3 3 3 4 3 5 8 9 10 Weapon 4 | . 3 8 6 4 4 3 2 3 3 3 3 3 2 2 1 . . 5 7 7 5 Tool/Special . | . . . . . . . . . . . . . . . . . . . . . . Unused Backups 59 | . 7 2 9 10 1 . 2 1 . 3 3 1 . . . . 1 5 . 2 12 Power 9 | . 4 2 1 . . . . . . . . 1 . . . . . . . . 1 Propulsion 12 | . . . 2 6 1 . 1 . . . . . . . . . . 2 . . . Utility 24 | . . . 3 . . . . 1 . 3 3 . . . . . 1 3 . 1 9 Weapon 14 | . 3 . 3 4 . . 1 . . . . . . . . . . . . 1 2 Tool/Special . | . . . . . . . . . . . . . . . . . . . . . . Average Slot Usage (%) 89 | . 99 100 99 99 96 100 100 95 92 92 92 77 73 73 58 51 54 80 99 93 46 Engine 7 | . 13 14 11 9 7 7 7 7 7 7 7 6 6 6 3 . . 1 . . . Reactor 1 | . . . . . . . . . . . . . . . . . . 1 5 7 2 Treads 11 | . 22 23 22 33 1 . . . . . . . . . . 3 2 . . . 2 Leg 4 | . . . . 2 . . . . . . . . . . . . . 14 29 22 7 Wheel 1 | . 5 4 . . . . . . . . . . . . . 3 5 2 . . . Hover 7 | . . . . . 36 38 38 38 38 30 30 20 20 20 13 . . 1 . . . Device 11 | . 14 14 19 15 7 7 7 7 7 7 6 4 . . . 4 5 4 7 12 8 Storage 8 | . 14 14 11 9 7 7 7 7 7 7 7 4 . . . . . 3 5 5 5 Processor 4 | . . . . . 6 7 7 7 7 7 7 6 6 6 5 13 17 13 11 10 6 Hackware 8 | . . . . . 13 15 15 15 15 15 15 21 33 33 28 23 23 23 17 9 5 Protection 3 | . . . 13 11 . . . . . . . . . . . . . . 2 2 . Energy Gun 9 | . 14 14 21 15 . . . . . . . . . . . . . 7 6 10 3 Energy Cannon 1 | . . . . . . . . . . . 4 4 6 6 4 . . . 3 6 2 Ballistic Gun 4 | . 14 14 . 2 11 9 7 3 1 6 2 3 . . . . . . 5 1 . Peak Build Rating 141 | 7 13 15 25 34 51 53 57 57 55 60 60 71 61 61 65 59 59 127 134 141 125 Average Rating 49 | 5 8 14 22 30 47 51 55 52 51 59 58 60 61 61 56 53 56 89 128 129 62 On Entrance 49 | . 7 13 14 23 34 51 52 56 51 52 60 59 61 61 61 32 59 55 127 126 27 Avg Prop Armor Cover (%) 16 | . 13 . . 3 . . 5 5 5 6 . . . . . 36 33 26 . 3 9 Naked Turns . | . . . . . . . . . . . . . . . . . . . . . . Heaviest Build 113 | 11 54 54 102 101 39 39 38 38 39 38 76 50 16 16 16 2 2 73 89 113 113 Greatest Support 135 | 40 40 40 46 91 41 41 44 44 35 46 46 46 27 27 27 3 3 135 135 135 85 Greatest Overweight (x) 16 | . 4 2 2 1 1 . 1 1 1 . 1 1 . . . . . 2 . 16 15 Average Overweight (x) . | . 1 1 1 1 . . . . . . . . . . . . . . . . 3 Largest Inventory Capacity 25 | 8 20 20 25 25 25 15 15 15 15 15 20 15 5 5 5 5 5 20 20 20 20 Average Capacity 17 | 7 18 20 22 25 15 15 15 15 15 15 15 12 5 5 5 5 5 14 20 20 20 Most Carried 25 | 3 20 20 25 25 25 15 15 15 15 15 15 15 5 5 5 5 5 20 20 20 20 Average Carried 16 | 1 12 19 22 24 15 15 14 14 14 14 14 10 5 5 4 4 5 13 19 19 18 Final Capacity 25 | 8 20 20 25 25 15 15 15 15 15 15 15 5 5 5 5 5 5 20 20 20 20 Final Carried 25 | 3 20 20 25 25 15 15 15 15 15 15 15 5 5 5 5 5 5 20 20 19 18 Class Distribution -------------------- 37% | Mutant 20% | Hacker-Mutant 14% | Scavenger-Mutant 13% | Wizard-Mutant 5% | Scavenger-Skirmisher 4% | Wizard-Skirmisher 3% | Hacker-Skirmisher Dominant Class ---------------- Mutant | -10/Materials Scavenger-Mutant | -10/Mines Mutant | -9/Materials Mutant | -8/Materials Hacker-Mutant | -7/Factory Hacker-Mutant | -7/Waste Hacker-Mutant | -7/Factory Hacker-Mutant | -7/Lower Caves Hacker-Mutant | -7/Lower Caves Hacker-Mutant | -7/Data Miner Hacker-Mutant | -6/Proximity Caves Hacker-Mutant | -6/Factory Wizard-Mutant | -6/Lower Caves Wizard-Mutant | -6/Lower Caves Wizard-Mutant | -5/Factory Wizard-Mutant | -5/Upper Caves Wizard-Mutant | -5/Upper Caves Wizard-Mutant | -5/Warlord Hacker-Skirmisher | -4/Proximity Caves Scavenger-Skirmisher | -4/Factory Mutant | -4/Armory Resources | -11 -10 -10 -9 -8 -7 -7 -7 -7 -7 -7 -6 -6 -6 -6 -5 -5 -5 -5 -4 -4 -4 ----------- Run | Yrd Mat Min Mat Mat Fac Was Fac Low Low Dat Pro Fac Low Low Fac Upp Upp War Pro Fac Arm Matter Collected 3988 | 293 240 140 255 408 142 162 370 239 26 27 195 147 . . . 108 . 240 198 446 352 Remotely . | . . . . . . . . . . . . . . . . . . . . . . Salvage Created 7651 | 184 601 180 988 874 93 611 174 288 . 27 107 257 . . 38 . . 495 545 1649 540 Parts 320 | 12 42 10 52 43 7 6 10 3 . 4 3 9 . . 1 . . 16 14 71 17 Haulers Intercepted 12 | . 2 . 3 4 . . 1 . . . . . . . . . . . 1 1 . Recyclers Shooed 8 | . 1 1 3 . . . . . . . . . . . . . . . . 3 . Parts Field Recycled . | . . . . . . . . . . . . . . . . . . . . . . Retrieved Matter . | . . . . . . . . . . . . . . . . . . . . . . Parts Self-Destructed 18 | . . . . . . . . 1 . . 2 . . . . . 1 . 14 . . Prevented 12 | . . . . . . . . . 6 . . . . . . . 6 . . . . Parts Restored . | . . . . . . . . . . . . . . . . . . . . . . Kills | -11 -10 -10 -9 -8 -7 -7 -7 -7 -7 -7 -6 -6 -6 -6 -5 -5 -5 -5 -4 -4 -4 ------- Run | Yrd Mat Min Mat Mat Fac Was Fac Low Low Dat Pro Fac Low Low Fac Upp Upp War Pro Fac Arm Combat Hostiles Destroyed 128 | . 14 4 18 18 1 3 . 1 . . 4 5 . . . . . 13 8 16 23 Guns 67 | . 14 4 17 18 1 . . 1 . . 1 2 . . . . . 1 5 3 . Cannons 26 | . . . . . . . . . . . . 1 . . . . . 1 . 11 13 AOE 32 | . . . 1 . . 3 . . . . 3 2 . . . . . 10 3 . 10 Classes Destroyed 20 | 3 5 1 1 2 1 1 1 . . . . . . . . . . 4 . 1 . Worker 11 | 2 1 . . 1 2 . 2 . . . . 1 . . . . . . . 2 . Builder 4 | . . . . . . . . . . . . . . . . . . . . 4 . Tunneler 6 | 4 1 . . . 1 . . . . . . . . . . . . . . . . Hauler 12 | . 2 . 3 4 . . 1 . . . . . . . . . . . 1 1 . Recycler 9 | 1 . . 4 . . . . . . . . 1 . . . . . . . 3 . Mechanic 1 | . . . . 1 . . . . . . . . . . . . . . . . . Operator 5 | . 1 . 2 . . . . . . . . . . . . . . . . . 2 Watcher 8 | . 1 . 3 3 . . . . . . . . . . 1 . . . . . . Swarmer 22 | . 5 . 3 3 . . . . . . . 4 . . . . . 1 2 . 4 Grunt 62 | . 9 2 12 9 . . . . . . 4 . . . . . . 4 5 6 11 Brawler 1 | . . . . . . . . . . . . . . . . . . 1 . . . Duelist 4 | . . . 1 . . . . . . . . . . . . . . 2 . . 1 Protector 2 | . . . . . . . . . . . . . . . . . . 2 . . . Sentry 11 | . . 2 2 5 . . . . . . . . . . . . . . 1 1 . Demolisher 1 | . . . . . . . . . . . . . . . . . . . . . 1 Hunter 6 | . . . . 1 . . . . . . . . . . . . . 1 . 2 2 Programmer 14 | . . . . . 1 . . 1 . . . 1 . . . . . . . 7 4 Compactor 3 | . . . . . . 3 . . . . . . . . . . . . . . . Striker 1 | . . . . . . . . . . . . . . . . . . 1 . . . Executioner 1 | . . . . . . . . . . . . . . . . . . 1 . . . Wasp 2 | . . . . . . 1 1 . . . . . . . . . . . . . . Martyr 2 | . . . . . . . 2 . . . . . . . . . . . . . . Best Kill Streak 9 | 3 3 2 4 5 2 3 1 1 . 1 4 6 . . 1 . . 7 3 9 6 Combat Bots Only 7 | . 3 2 3 4 1 3 . 1 . . 4 4 . . . . . 7 3 5 6 Max Kills in Single Turn 5 | 1 1 1 1 2 1 1 2 1 . 1 2 2 . . 1 . . 5 2 3 4 Gunslinging . | . . . . . . . . . . . . . . . . . . . . . . Exploded 4 | . . . 1 . . 1 . . . . 2 2 . . . . . 4 2 . 4 Melee . | . . . . . . . . . . . . . . . . . . . . . . Uniques/NPCs Destroyed 1 | . . . . . . . . . . 1 . . . . . . . . . . . Data Miner (-7/Data Miner) Combat | -11 -10 -10 -9 -8 -7 -7 -7 -7 -7 -7 -6 -6 -6 -6 -5 -5 -5 -5 -4 -4 -4 -------- Run | Yrd Mat Min Mat Mat Fac Was Fac Low Low Dat Pro Fac Low Low Fac Upp Upp War Pro Fac Arm Hostile Shots Fired 896 | . 135 29 44 96 8 . 9 6 . 6 17 75 1 . 78 1 8 4 35 224 120 Missed 289 | . 42 7 12 28 4 . 5 2 . 1 6 30 . . 22 . 5 2 14 73 36 Hits 607 | . 93 22 32 68 4 . 4 4 . 5 11 45 1 . 56 1 3 2 21 151 84 Projectile 607 | . 93 22 32 68 4 . 4 4 . 5 11 45 1 . 56 1 3 2 21 151 84 AOE 5 | . . . . . . . . . . . . . . . . . . 1 . 1 3 Critical Strikes 29 | . 2 . 1 7 1 . . . . . 1 1 . . 2 . . . 1 9 4 Part Disruptions 1 | . . . . . . . . . . . . . . . . . . . . 1 . Damage Taken 10705 | . 893 294 381 1024 61 . 107 110 . 230 245 642 20 . 823 15 74 106 632 3398 1650 Core 2397 | . 147 73 50 106 16 . 24 14 . 47 69 147 . . 420 . 24 6 95 799 360 Absorbed by Shields . | . . . . . . . . . . . . . . . . . . . . . . Redirected to Shielding 169 | . . . . . . . . . . . . . . . . . . . . 169 . Ignored by Resistances 93 | . . . . . . . . . . . . . . . . . . . 36 57 . Regen/Repaired (Parts) 358 | . . . 61 . . . 21 . . . . . . . 109 . . 21 . 146 . Core Remaining (%) 68 | 100 . 12 87 80 . . . . . . 75 . . 82 . . . . 45 . . Volleys Fired 507 | 23 90 14 54 58 7 9 12 16 19 1 9 14 . . 35 . . 10 38 75 23 Largest 4 | 2 2 2 2 2 2 2 2 2 1 1 2 3 . . 2 . . 2 3 4 3 Hottest 364 | 60 88 88 130 130 56 56 56 56 65 30 65 130 . . 93 . . 80 216 364 250 Shots Fired 910 | 45 178 28 106 115 10 10 18 20 19 1 10 20 . . 40 . . 17 60 173 40 Gun 644 | 45 178 28 104 115 9 2 13 8 . 1 2 4 . . 5 . . 14 30 77 9 Cannon 236 | . . . . . . . 5 11 19 . 4 14 . . 35 . . . 27 96 25 Launcher 18 | . . . 2 . 1 8 . 1 . . 4 2 . . . . . . . . . Special 12 | . . . . . . . . . . . . . . . . . . 3 3 . 6 Kinetic 237 | 23 90 14 2 24 9 2 18 19 . 1 2 6 . . 5 . . . 14 8 . Thermal 615 | 22 88 14 102 91 . . . . 19 . 4 12 . . 35 . . 14 43 162 9 Explosive 30 | . . . 2 . 1 8 . 1 . . 4 2 . . . . . 3 3 . 6 Electromagnetic . | . . . . . . . . . . . . . . . . . . . . . . Entropic 28 | . . . . . . . . . . . . . . . . . . . . 3 25 Robot Hit Streak 27 | 8 9 27 13 13 4 4 9 4 . . 6 3 . . 12 . . 3 10 7 6 Robot Miss Streak 7 | 4 7 1 5 6 6 6 3 4 . . 3 4 . . 3 . . 2 2 5 2 Penetration Max 1 | . . . . . . . . . . . . . . . . . . . . . 1 Secondary Targets 7 | . 1 . 1 5 . . . . . . . . . . . . . . . . . Max Gunslinging Chain 1 | . 1 . 1 1 . . . . . . . . . . . . . . . . . Shots Hit Robots 546 | 24 103 24 89 99 8 7 15 13 . 1 5 4 . . 12 . . 10 26 81 25 Core Hits 513 | 12 36 8 115 135 10 16 22 9 . . 11 10 . . 9 . . 23 17 43 37 Critical Kills 1 | . . . . . . . . . . . . . . . . . . . . 1 . Critical Parts Destroyed 1 | . . . . . . . . . . . . . . . . . . . . 1 . Critical Strikes 33 | . 4 . 2 . . . . 1 . . . . . . . . . 1 . 10 15 Burn 15 | . 4 . 2 . . . . . . . . . . . . . . . . 8 1 Meltdown 1 | . . . . . . . . . . . . . . . . . . . . 1 . Destroy 1 | . . . . . . . . . . . . . . . . . . . . 1 . Sever 2 | . . . . . . . . . . . . . . . . . . 1 . . 1 Impale 1 | . . . . . . . . 1 . . . . . . . . . . . . . Sunder 13 | . . . . . . . . . . . . . . . . . . . . . 13 Melee Attacks 78 | . . . . . . . 8 7 2 45 3 13 . . . . . . . . . Impact . | . . . . . . . . . . . . . . . . . . . . . . Slashing 63 | . . . . . . . . . 2 45 3 13 . . . . . . . . . Piercing 15 | . . . . . . . 8 7 . . . . . . . . . . . . . Sneak Attacks 4 | . . . . . . . 2 . . 1 . 1 . . . . . . . . . Combat Hostiles . | . . . . . . . . . . . . . . . . . . . . . . Follow-up Attacks . | . . . . . . . . . . . . . . . . . . . . . . Damage Inflicted 19967 | 231 1161 388 1353 1706 139 1282 443 530 . 97 651 455 . . 285 . . 1949 1310 3819 4168 Guns 7851 | 231 1161 388 1287 1706 104 65 258 147 . . 12 75 . . 80 . . 136 581 1511 109 Cannons 4458 | . . . . . . . . . . . . 76 . . 203 . . . 142 1712 2325 Explosions 6539 | . . . 66 . 35 1217 . . . . 639 225 . . . . . 1723 587 596 1451 Melee 744 | . . . . . . . 185 383 . 97 . 79 . . . . . . . . . Ramming 2 | . . . . . . . . . . . . . . . 2 . . . . . . Kinetic 2264 | 98 500 165 17 400 104 65 258 147 . . 12 88 . . 80 . . . 207 123 . Thermal 7720 | 133 661 223 1270 1306 . . . . . . . 63 . . 203 . . 136 516 3100 109 Explosive 6539 | . . . 66 . 35 1217 . . . . 639 225 . . . . . 1723 587 596 1451 Electromagnetic . | . . . . . . . . . . . . . . . . . . . . . . Impact . | . . . . . . . . . . . . . . . . . . . . . . Slashing 549 | . . . . . . . . . . 97 . 79 . . . . . 90 . . 283 Piercing 568 | . . . . . . . 185 383 . . . . . . . . . . . . . Entropic 2325 | . . . . . . . . . . . . . . . . . . . . . 2325 Highest Corruption 7 | . . . . 5 2 7 7 7 3 3 3 . . . . . . . 2 7 3 Average Corruption 4 | . . . . 5 2 6 7 6 3 3 3 . . . . . . . 2 4 1 Corruption Purged 11 | . . . . . . . . 4 . . . . . . . . . . . 7 . Corruption Blocked . | . . . . . . . . . . . . . . . . . . . . . . Effects 128 | . . . . 30 6 3 17 20 5 8 6 . . . . . . . 3 17 13 Message Errors 31 | . . . . 4 4 1 7 6 1 1 . . . . . . . . 1 3 3 Matter Fused 33 | . . . . 11 1 1 4 5 1 1 2 . . . . . . . 2 4 1 Heat Flow Errors 12 | . . . . 1 . . 2 . 1 2 . . . . . . . . . 2 4 Energy Discharges 23 | . . . . 6 1 . . 3 1 2 3 . . . . . . . . 5 2 Parts Rejected 1 | . . . . . . . . . . . . . . . . . . . . . 1 Parts Fused 1 | . . . . . . . 1 . . . . . . . . . . . . . . Data Loss (minor) 14 | . . . . 4 . . 1 4 . 2 . . . . . . . . . 3 . Data Loss (major) 6 | . . . . 1 . . 1 2 . . . . . . . . . . . . 2 Misfires 1 | . . . . 1 . . . . . . . . . . . . . . . . . Alerts 4 | . . . . . . 1 1 . 1 . 1 . . . . . . . . . . Weapon Failures 2 | . . . . 2 . . . . . . . . . . . . . . . . . Overload Shots . | . . . . . . . . . . . . . . . . . . . . . . Overflow Damage 736 | . . . 2 . . . 72 58 . 37 . 13 . . . . . 59 . 133 362 Projectiles 375 | . . . . . . . . . . . . . . . . . . . . 66 309 Explosions 197 | . . . 2 . . . . 3 . . . 13 . . . . . 59 . 67 53 Melee 164 | . . . . . . . 72 55 . 37 . . . . . . . . . . . Knockbacks 1 | . . . . . . . . . . . . 1 . . . . . . . . . Impact . | . . . . . . . . . . . . . . . . . . . . . . Kinetic 1 | . . . . . . . . . . . . 1 . . . . . . . . . Secondary . | . . . . . . . . . . . . . . . . . . . . . . Self-Inflicted Damage 257 | . . . . . . . . 53 . . 17 56 . . 1 . . . . 93 37 Shots 6 | . . . . . . . . 1 . . 1 1 . . . . . . . 2 1 Rammed 1 | . . . . . . . . . . . . . . . 1 . . . . . . Targets Rammed 1 | . . . . . . . . . . . . . . . 1 . . . . . . Kicked . | . . . . . . . . . . . . . . . . . . . . . . Crushed . | . . . . . . . . . . . . . . . . . . . . . . Highest Temperature 523 | 40 210 118 213 303 . . 419 2 176 275 54 96 . . 39 . . 9 297 523 441 Average Temperature 77 | 20 51 45 58 94 . . 137 2 78 124 21 24 . . 9 . . 9 81 121 130 Received Heat Transfer 2166 | . 216 144 192 531 . . 6 . . . 102 18 9 . . . 18 18 66 536 310 Effects 9 | . . . . . . . 2 . . 1 . . . . . . . . . 5 1 Shutdowns 2 | . . . . . . . . . . . . . . . . . . . . 2 . Energy Bleed 1 | . . . . . . . . . . . . . . . . . . . . . 1 Interference 2 | . . . . . . . . . . 1 . . . . . . . . . 1 . Matter Decay 1 | . . . . . . . . . . . . . . . . . . . . 1 . Short Circuit 2 | . . . . . . . 1 . . . . . . . . . . . . 1 . Damage (major) 1 | . . . . . . . 1 . . . . . . . . . . . . . . Siege Activations . | . . . . . . . . . . . . . . . . . . . . . . Martial Activations . | . . . . . . . . . . . . . . . . . . . . . . Shielding Activations . | . . . . . . . . . . . . . . . . . . . . . . Robots Disrupted . | . . . . . . . . . . . . . . . . . . . . . . Combat Hostiles . | . . . . . . . . . . . . . . . . . . . . . . Robots Corrupted . | . . . . . . . . . . . . . . . . . . . . . . Combat Hostiles . | . . . . . . . . . . . . . . . . . . . . . . Parts Fried . | . . . . . . . . . . . . . . . . . . . . . . Impact Corruptions . | . . . . . . . . . . . . . . . . . . . . . . Robots Melted 3 | . . . . . . . . . . . . . . . . . . 1 . 2 . Combat Hostiles 3 | . . . . . . . . . . . . . . . . . . 1 . 2 . Parts Melted 32 | . 2 2 1 2 . . . . . . . . . . . . . 3 3 19 . Heat Transferred 12405 | 300 1944 518 1967 1950 . . . . . . . 74 . . 259 . . 314 718 4102 259 Parts Sabotaged . | . . . . . . . . . . . . . . . . . . . . . . Parts Stolen . | . . . . . . . . . . . . . . . . . . . . . . Parts Stripped . | . . . . . . . . . . . . . . . . . . . . . . Power Chain Reactions . | . . . . . . . . . . . . . . . . . . . . . . Alert | -11 -10 -10 -9 -8 -7 -7 -7 -7 -7 -7 -6 -6 -6 -6 -5 -5 -5 -5 -4 -4 -4 ------- Run | Yrd Mat Min Mat Mat Fac Was Fac Low Low Dat Pro Fac Low Low Fac Upp Upp War Pro Fac Arm Maximum Alert Level 1 | . . . . . . . . . . . . . . . . . . . . 1 1 Low Security (%) 92 | 100 100 100 100 100 100 100 100 . . . . 100 . . 100 . . . . 38 86 Level 1 7 | . . . . . . . . . . . . . . . . . . . . 61 13 Level 2 . | . . . . . . . . . . . . . . . . . . . . . . Level 3 . | . . . . . . . . . . . . . . . . . . . . . . Level 4 . | . . . . . . . . . . . . . . . . . . . . . . Level 5 . | . . . . . . . . . . . . . . . . . . . . . . High Security . | . . . . . . . . . . . . . . . . . . . . . . Max Security . | . . . . . . . . . . . . . . . . . . . . . . Peak Influence 351 | 5 131 144 104 183 68 29 38 . . . . 112 . . 24 . . . . 351 326 Initial 97 | . . 39 5 30 68 7 9 . . . . . . . 16 . . . . . 97 Average 59 | 2 38 35 32 83 18 9 6 . . . . 54 . . 4 . . . . 190 85 Influence Increases 4787 | 35 393 352 591 563 65 34 133 40 . 20 105 257 45 . 55 75 75 305 165 751 728 Destroy 0b10 Robot/C 2620 | . 280 260 360 360 20 . 60 20 . 20 80 100 . . . . . 220 160 320 360 Destroy 0b10 Robot/NC 305 | 35 30 . 60 45 15 . 20 10 . . . 10 . . 5 . . 10 5 50 10 Destroy Leader 480 | . 46 40 82 104 10 . 14 10 . . 10 20 . . 2 . . . . 72 70 Allied During Kill 38 | . . 22 . . . . 16 . . . . . . . . . . . . . . Successful Hack 188 | . 21 . 22 39 14 . 18 . . . . 26 . . 6 . . . . 42 . Disable Machine 240 | . . . . . . . . . . . . . . . 15 . . . . 90 135 Destroy Structure 376 | . 1 . 22 . 6 34 5 . . . . 26 . . 12 . . . . 162 108 Partial Spotted 15 | . . . . . . . . . . . . 15 . . . . . . . . . Lose Combat Pursuer 525 | . 15 30 45 15 . . . . . . 15 60 45 . 15 75 75 75 . 15 45 Influence Decreases 4467 | 35 292 438 533 485 196 40 146 41 . 20 105 194 74 7 82 75 25 178 342 552 607 Entered New Map 588 | . . 62 10 43 83 13 5 1 . . . . 24 7 11 . . 50 177 . 102 Time Decay 3286 | 35 252 326 491 422 113 27 141 40 . 20 105 143 50 . 69 75 25 128 145 352 327 Lost Part 400 | . 40 10 7 20 . . . . . . . 51 . . 2 . . . 20 200 50 Lost Ally 40 | . . 40 . . . . . . . . . . . . . . . . . . . Purge Threat 153 | . . . 25 . . . . . . . . . . . . . . . . . 128 Squads Dispatched 32 | . 2 . 2 1 3 . 3 . . . . 3 . . 1 . 1 . . 8 8 Investigation 11 | . 1 . . 1 2 . . . . . . 2 . . 1 . . . . 3 1 Extermination 9 | . . . . . 1 . 2 . . . . 1 . . . . . . . 3 2 Reinforcement 11 | . 1 . 2 . . . 1 . . . . . . . . . . . . 2 5 Assault 1 | . . . . . . . . . . . . . . . . . 1 . . . . Garrison . | . . . . . . . . . . . . . . . . . . . . . . Intercept . | . . . . . . . . . . . . . . . . . . . . . . Searches Triggered . | . . . . . . . . . . . . . . . . . . . . . . Construction Impeded 1 | . . . . . . . . . . . . . . . . . . . . 1 . Haulers Reinforced 1 | . . . . . . . 1 . . . . . . . . . . . . . . Active Scanning Responses . | . . . . . . . . . . . . . . . . . . . . . . Cargo Convoy Interrupts . | . . . . . . . . . . . . . . . . . . . . . . Stealth | -11 -10 -10 -9 -8 -7 -7 -7 -7 -7 -7 -6 -6 -6 -6 -5 -5 -5 -5 -4 -4 -4 --------- Run | Yrd Mat Min Mat Mat Fac Was Fac Low Low Dat Pro Fac Low Low Fac Upp Upp War Pro Fac Arm Distress Signals 11 | . 3 . 2 2 . . . . . . . . . . . . . 1 . 1 2 Communications Jammed . | . . . . . . . . . . . . . . . . . . . . . . Distress Signals . | . . . . . . . . . . . . . . . . . . . . . . Times Spotted 275 | . 25 16 35 30 1 6 4 1 . 4 5 14 3 . 5 5 5 37 5 30 44 Peak Tracking Total 14 | . 7 6 4 4 1 6 1 1 . 4 4 6 3 . 3 5 5 14 3 10 12 Tactical Retreats 22 | . 1 2 3 1 . . . . . . 1 3 1 . 1 1 2 2 . 1 3 Traps | -11 -10 -10 -9 -8 -7 -7 -7 -7 -7 -7 -6 -6 -6 -6 -5 -5 -5 -5 -4 -4 -4 ------- Run | Yrd Mat Min Mat Mat Fac Was Fac Low Low Dat Pro Fac Low Low Fac Upp Upp War Pro Fac Arm Traps Triggered 12 | . 1 . . 1 2 . 1 . . . . 2 . . . . . . . 5 . Indirectly . | . . . . . . . . . . . . . . . . . . . . . . Trap Hack Attempts . | . . . . . . . . . . . . . . . . . . . . . . Triggered . | . . . . . . . . . . . . . . . . . . . . . . Disarmed . | . . . . . . . . . . . . . . . . . . . . . . Reprogrammed . | . . . . . . . . . . . . . . . . . . . . . . Reused . | . . . . . . . . . . . . . . . . . . . . . . Traps Extracted . | . . . . . . . . . . . . . . . . . . . . . . Installed . | . . . . . . . . . . . . . . . . . . . . . . Triggered . | . . . . . . . . . . . . . . . . . . . . . . Machines | -11 -10 -10 -9 -8 -7 -7 -7 -7 -7 -7 -6 -6 -6 -6 -5 -5 -5 -5 -4 -4 -4 ---------- Run | Yrd Mat Min Mat Mat Fac Was Fac Low Low Dat Pro Fac Low Low Fac Upp Upp War Pro Fac Arm Machines Disabled 17 | . . . . . . . . . . . . . . . 1 . . . . 7 9 Max in Single Turn 3 | . . . . . . . . . . . . . . . 1 . . . . 2 3 Garrison Access 7 | . . . . . 1 . 2 . . . . 1 . . 1 . . . . 2 . Machines Repaired . | . . . . . . . . . . . . . . . . . . . . . . Machines Dismantled . | . . . . . . . . . . . . . . . . . . . . . . Machines Sabotaged . | . . . . . . . . . . . . . . . . . . . . . . Overloaded Fab Kills . | . . . . . . . . . . . . . . . . . . . . . . Hacking | -11 -10 -10 -9 -8 -7 -7 -7 -7 -7 -7 -6 -6 -6 -6 -5 -5 -5 -5 -4 -4 -4 --------- Run | Yrd Mat Min Mat Mat Fac Was Fac Low Low Dat Pro Fac Low Low Fac Upp Upp War Pro Fac Arm Machines Accessed 83 | . 7 1 11 8 9 . 12 . 1 4 . 8 . . 7 . . 4 . 8 3 Terminals 36 | . 5 1 8 5 1 . 4 . . . . 7 . . 2 . . . . 2 1 Fabricators 9 | . . . . . 2 . 1 . . . . . . . 2 . . . . 2 2 Repair Stations 7 | . . . 1 1 . . 3 . . . . . . . 1 . . . . 1 . Recycling Units 10 | . 2 . 1 1 4 . 1 . . . . . . . . . . . . 1 . Scanalyzers 5 | . . . 1 1 1 . 1 . . . . . . . 1 . . . . . . Garrison Access 7 | . . . . . 1 . 2 . . . . 1 . . 1 . . . . 2 . Total Hacks 239 | . 22 2 30 23 18 . 23 . 1 32 . 27 . . 18 . . 18 . 16 9 Successful 159 | . 9 . 17 12 9 . 11 . 1 32 . 19 . . 17 . . 18 . 12 2 Failed 76 | . 13 2 12 10 9 . 11 . . . . 8 . . . . . . . 4 7 Catastrophic 6 | . 2 . 1 1 . . 1 . . . . 1 . . . . . . . . . Database Lockouts 4 | . . . 1 1 . . 1 . . . . . . . 1 . . . . . . Manual 86 | . 18 2 14 9 6 . 5 . . . . 18 . . 7 . . 1 . 6 . Terminals 112 | . 19 2 22 16 3 . 8 . . . . 26 . . 9 . . . . 4 3 Fabricators 24 | . . . . . 5 . 2 . . . . . . . 5 . . . . 6 6 Repair Stations 13 | . . . 2 2 . . 5 . . . . . . . 2 . . . . 2 . Recycling Units 18 | . 3 . 3 2 7 . 1 . . . . . . . . . . . . 2 . Scanalyzers 12 | . . . 3 3 2 . 3 . . . . . . . 1 . . . . . . Garrison Access 9 | . . . . . 1 . 4 . . . . 1 . . 1 . . . . 2 . Terminal Hacks 94 | . 4 . 7 7 1 . 1 . 1 32 . 15 . . 6 . . 18 . 1 1 Record 12 | . . . . . . . . . . 11 . 1 . . . . . . . . . Part Schematic 22 | . . . . . 1 . . . . 12 . 6 . . 3 . . . . . . Robot Schematic 6 | . . . . . . . . . . 6 . . . . . . . . . . . Robot Analysis 1 | . 1 . . . . . . . . . . . . . . . . . . . . Prototype ID Bank 27 | . 1 . 1 1 . . . . . 3 . 4 . . . . . 17 . . . Open Door 2 | . . . . . . . . . 1 . . . . . . . . 1 . . . Level Access Points 2 | . . . . . . . . . . . . 1 . . 1 . . . . . . Branch Access Points 4 | . . . 1 1 . . . . . . . 1 . . 1 . . . . . . Terminal Index 4 | . 1 . 1 1 . . 1 . . . . . . . . . . . . . . Scanalyzer Index 1 | . . . . 1 . . . . . . . . . . . . . . . . . Unreport Threat 2 | . . . 1 . . . . . . . . . . . . . . . . . 1 Locate Traps 7 | . 1 . 2 2 . . . . . . . 1 . . 1 . . . . . . Recall Extermination 1 | . . . . . . . . . . . . . . . . . . . . 1 . Zone Layout 3 | . . . 1 1 . . . . . . . 1 . . . . . . . . . Fabricator Hacks 12 | . . . . . 2 . 2 . . . . . . . 3 . . . . 4 1 Network Status 2 | . . . . . 1 . 1 . . . . . . . . . . . . . . Load Schematic 6 | . . . . . 1 . . . . . . . . . 2 . . . . 2 1 Build 4 | . . . . . . . 1 . . . . . . . 1 . . . . 2 . Repair Station Hacks 7 | . . . 2 1 . . 2 . . . . . . . 2 . . . . . . Scan Component 4 | . . . 1 1 . . 1 . . . . . . . 1 . . . . . . Repair 3 | . . . 1 . . . 1 . . . . . . . 1 . . . . . . Recycling Unit Hacks 7 | . 1 . 2 1 1 . 1 . . . . . . . . . . . . 1 . Retrieve Components 7 | . 1 . 2 1 1 . 1 . . . . . . . . . . . . 1 . Scanalyzer 5 | . . . 2 1 1 . 1 . . . . . . . . . . . . . . Retrieve Study 5 | . . . 2 1 1 . 1 . . . . . . . . . . . . . . Garrison Access Hacks 7 | . . . . . 1 . 2 . . . . 1 . . 1 . . . . 2 . Seal Access 7 | . . . . . 1 . 2 . . . . 1 . . 1 . . . . 2 . Unauthorized Hacks 27 | . 4 . 4 2 3 . 2 . . . . 3 . . 5 . . . . 4 . Terminals 20 | . 4 . 4 2 1 . 2 . . . . 3 . . 3 . . . . 1 . Track 1 | . . . . . . . . . . . . . . . 1 . . . . . . Assimilate 1 | . . . . . . . 1 . . . . . . . . . . . . . . Botnet 14 | . 2 . 3 2 1 . 1 . . . . 2 . . 2 . . . . 1 . Disrupt 1 | . . . . . . . . . . . . 1 . . . . . . . . . Operators 3 | . 2 . 1 . . . . . . . . . . . . . . . . . . Fabricators 6 | . . . . . 2 . . . . . . . . . 2 . . . . 2 . Prioritize 3 | . . . . . . . . . . . . . . . 1 . . . . 2 . Recompile 3 | . . . . . 2 . . . . . . . . . 1 . . . . . . Repair Stations 1 | . . . . . . . . . . . . . . . . . . . . 1 . Patch 1 | . . . . . . . . . . . . . . . . . . . . 1 . Recycling Units . | . . . . . . . . . . . . . . . . . . . . . . Scanalyzers . | . . . . . . . . . . . . . . . . . . . . . . Garrison Access . | . . . . . . . . . . . . . . . . . . . . . . Data Cores Recovered . | . . . . . . . . . . . . . . . . . . . . . . Used . | . . . . . . . . . . . . . . . . . . . . . . Hacking Detections 54 | . 6 1 9 6 6 . 9 . . . . 7 . . 2 . . . . 5 3 Full Trace Events 4 | . . . . 1 . . . . . . . . . . . . . . . 2 1 Feedback Events 1 | . . . . . . . . . . . . . . . . . . . . . 1 Corruption 1 | . . . . . . . . . . . . . . . . . . . . . 1 Feedback Blocked . | . . . . . . . . . . . . . . . . . . . . . . Robot Schematics Acquired 6 | . . . . . . . . . . 6 . . . . . . . . . . . Robots Built . | . . . . . . . . . . . . . . . . . . . . . . Authchips . | . . . . . . . . . . . . . . . . . . . . . . Time . | . . . . . . . . . . . . . . . . . . . . . . Total Robot Build Rating . | . . . . . . . . . . . . . . . . . . . . . . Part Schematics Acquired 22 | . . . . . 1 . . . . 12 . 6 . . 3 . . . . . . Parts Built 6 | . . . . . . . 2 . . . . . . . 2 . . . . 2 . Authchips 1 | . . . . . . . . . . . . . . . 1 . . . . . . Time 233 | . . . . . . . 95 . . . . . . . 58 . . . . 80 . Total Part Build Rating 35 | . . . . . . . 10 . . . . . . . 14 . . . . 11 . Part Studies Acquired 2 | . . . 1 . 1 . . . . . . . . . . . . . . . . Parts Repaired 3 | . . . 1 . . . 1 . . . . . . . 1 . . . . . . Time 96 | . . . 32 . . . 39 . . . . . . . 25 . . . . . . Parts Recycled . | . . . . . . . . . . . . . . . . . . . . . . Recycled Matter . | . . . . . . . . . . . . . . . . . . . . . . Retrieved Matter . | . . . . . . . . . . . . . . . . . . . . . . Retrieved Components 38 | . 10 . 16 9 . . 2 . . . . . . . . . . . . 1 . Parts Scanalyzed . | . . . . . . . . . . . . . . . . . . . . . . Part Schematics Acquired . | . . . . . . . . . . . . . . . . . . . . . . Parts Damaged . | . . . . . . . . . . . . . . . . . . . . . . Bothacking | -11 -10 -10 -9 -8 -7 -7 -7 -7 -7 -7 -6 -6 -6 -6 -5 -5 -5 -5 -4 -4 -4 ------------ Run | Yrd Mat Min Mat Mat Fac Was Fac Low Low Dat Pro Fac Low Low Fac Upp Upp War Pro Fac Arm Used RIF Installer . | . . . . . . . . . . . . . . . . . . . . . . Robots Hacked . | . . . . . . . . . . . . . . . . . . . . . . Non-combat . | . . . . . . . . . . . . . . . . . . . . . . Combat . | . . . . . . . . . . . . . . . . . . . . . . Robot Hacks Applied . | . . . . . . . . . . . . . . . . . . . . . . Relay Couplers Released . | . . . . . . . . . . . . . . . . . . . . . . Fabnet Peak Effective % . | . . . . . . . . . . . . . . . . . . . . . . Robots Rewired . | . . . . . . . . . . . . . . . . . . . . . . Allies Hacked . | . . . . . . . . . . . . . . . . . . . . . . Hacks Repelled . | . . . . . . . . . . . . . . . . . . . . . . Allies | -11 -10 -10 -9 -8 -7 -7 -7 -7 -7 -7 -6 -6 -6 -6 -5 -5 -5 -5 -4 -4 -4 -------- Run | Yrd Mat Min Mat Mat Fac Was Fac Low Low Dat Pro Fac Low Low Fac Upp Upp War Pro Fac Arm Total Allies 24 | . . 4 . . . 19 1 . . . . . . . . . . . . . . Largest Group 19 | . . 3 . . . 19 6 1 . . . . . . . . . . . . . Highest-Rated Group 475 | . . 47 . . . 475 105 10 . . . . . . . . . . . . . Highest-Rated Ally 35 | . . 31 . . . 35 35 10 . . . . . . . . . . . . . Total Orders . | . . . . . . . . . . . . . . . . . . . . . . Ally Attacks 137 | . . 28 . . . 75 34 . . . . . . . . . . . . . . Total Damage 2913 | . . 239 . . . 2386 288 . . . . . . . . . . . . . . Kills 16 | . . 9 . . . 3 4 . . . . . . . . . . . . . . Allies Corrupted . | . . . . . . . . . . . . . . . . . . . . . . Allies Melted 1 | . . . . . . . . . . . . . . . . . . 1 . . . Intel | -11 -10 -10 -9 -8 -7 -7 -7 -7 -7 -7 -6 -6 -6 -6 -5 -5 -5 -5 -4 -4 -4 ------- Run | Yrd Mat Min Mat Mat Fac Was Fac Low Low Dat Pro Fac Low Low Fac Upp Upp War Pro Fac Arm Active Infowar (turns) 9035 | 37 1682 552 295 . 317 105 633 572 409 454 364 243 . . . 655 184 590 669 890 384 Sensors 6351 | . . . . . 317 105 633 572 409 454 364 243 . . . 655 184 590 669 890 266 Terrain 385 | . . . . . . . . . . . . . . . . . . . . 1 384 Seismic 2566 | 37 1682 552 295 . . . . . . . . . . . . . . . . . . Robot Analysis Total 154 | . 1 . . . . . . . . 153 . . . . . . . . . . . Derelict Logs Recovered 10 | . . 3 . . . . . 1 1 . 2 . 1 . . . 2 . . . . Drone Launches . | . . . . . . . . . . . . . . . . . . . . . . Drone Recoveries . | . . . . . . . . . . . . . . . . . . . . . . Exploration | -11 -10 -10 -9 -8 -7 -7 -7 -7 -7 -7 -6 -6 -6 -6 -5 -5 -5 -5 -4 -4 -4 ------------- Run | Yrd Mat Min Mat Mat Fac Was Fac Low Low Dat Pro Fac Low Low Fac Upp Upp War Pro Fac Arm Turns Passed 16649 | 245 1938 1414 2562 1744 352 105 637 661 409 454 388 351 106 6 332 695 190 1103 726 1287 944 Spaces Moved 12028 | 105 806 629 772 617 472 164 1002 928 764 233 731 465 220 12 398 688 328 1088 568 772 266 Core 1752 | 4 . . . . . . . . . . . . . . 69 688 328 608 . 2 53 Treads 2488 | 101 518 480 772 617 . . . . . . . . . . . . . . . . . Legs 1950 | . . . . . . . . . . . . . . . . . . 400 568 769 213 Wheels 518 | . 288 149 . . . . . . . . . . . . . . . 80 . 1 . Hover 5320 | . . . . . 472 164 1002 928 764 233 731 465 220 12 329 . . . . . . Flight . | . . . . . . . . . . . . . . . . . . . . . . Fastest Speed 40 | 50 110 110 240 236 40 40 40 42 45 45 45 45 48 48 48 50 50 50 100 95 120 Average Speed 104 | 155 180 209 283 237 40 40 45 45 45 45 45 54 48 48 48 50 50 74 100 107 296 Slowest Speed 850 | 160 320 320 320 240 100 40 105 108 105 45 102 111 48 48 50 50 50 150 100 850 800 Overloaded Moves . | . . . . . . . . . . . . . . . . . . . . . . Propulsion Burnouts . | . . . . . . . . . . . . . . . . . . . . . . Robots Hopped . | . . . . . . . . . . . . . . . . . . . . . . Potential Cave-ins . | . . . . . . . . . . . . . . . . . . . . . . Cave-ins Triggered 1 | . . . . . . . . . . . . . . . . . . . 1 . . Exploration Rate (%) 54 | 5 92 98 67 58 16 77 25 86 86 91 89 22 41 3 12 72 54 90 61 26 23 Regions Visited 21 Branch Regions 12 Pre-discovered Areas 33 | . . . . . . . . . . 32 1 . . . . . . . . . . Known Exits Taken 14 | . . . . . . . 1 1 1 1 1 1 1 1 1 1 1 1 1 1 . Unknown Exits Taken 5 | 1 1 1 1 1 . . . . . . . . . . . . . . . . . Scrap Searched 23 | . . 1 . . . . . 8 2 . 5 . . . . 4 1 . 2 . . Spaces Dug 88 | . . . . . . 9 5 3 2 1 3 17 . . 5 . . . 18 25 . Terrain Destroyed 438 | . . . 23 . 5 32 6 15 8 1 26 25 . . 8 . . 26 105 93 65 Melee 24 | . . . . . . . 4 2 2 1 3 12 . . . . . . . . . Projectile 127 | . . . . . . . 2 2 6 . 2 4 . . 8 . . 1 38 48 16 AOE 287 | . . . 23 . 5 32 . 11 . . 21 9 . . . . . 25 67 45 49 Terrain Rammed . | . . . . . . . . . . . . . . . . . . . . . . Walls Destroyed . | . . . . . . . . . . . . . . . . . . . . . . Machines Disabled . | . . . . . . . . . . . . . . . . . . . . . . Actions | -11 -10 -10 -9 -8 -7 -7 -7 -7 -7 -7 -6 -6 -6 -6 -5 -5 -5 -5 -4 -4 -4 --------- Run | Yrd Mat Min Mat Mat Fac Was Fac Low Low Dat Pro Fac Low Low Fac Upp Upp War Pro Fac Arm Total 15165 | 143 1144 702 1054 788 626 190 1154 1137 802 503 768 520 219 11 496 1036 353 1369 670 1095 385 Wait 1988 | 6 188 45 157 59 106 14 107 173 7 214 13 9 . . 56 343 24 205 48 186 28 Move 12008 | 104 805 628 771 616 472 163 1001 927 763 232 730 464 219 11 397 687 327 1087 567 771 266 Hop . | . . . . . . . . . . . . . . . . . . . . . . Pick Up 135 | 3 27 2 24 15 6 . 3 1 2 3 3 . . . 3 1 1 21 4 10 6 Fast Attach 71 | 7 2 2 2 2 . 1 3 3 . 1 . 2 . . 1 4 . 11 . 14 16 Attach 66 | . 3 1 3 3 5 . . 2 1 1 . 7 . . 2 1 . 3 3 8 23 Detach 32 | . 1 1 . . 2 . 1 3 1 1 . 4 . . . . . 3 . 1 14 Swap 142 | . 12 4 18 16 13 2 12 4 5 1 7 7 . . . . . 10 9 18 4 Drop 136 | . 16 5 25 19 15 1 7 1 2 4 3 . . . 1 . 1 19 1 12 4 Fire 507 | 23 90 14 54 58 7 9 12 16 19 1 9 14 . . 35 . . 10 38 75 23 Melee 78 | . . . . . . . 8 7 2 45 3 13 . . . . . . . . . Ram 1 | . . . . . . . . . . . . . . . 1 . . . . . . Kick . | . . . . . . . . . . . . . . . . . . . . . . Crush . | . . . . . . . . . . . . . . . . . . . . . . Escape Stasis . | . . . . . . . . . . . . . . . . . . . . . . Rewire 1 | . . . . . . . . . . . . . . . . . . . . . 1 Trap . | . . . . . . . . . . . . . . . . . . . . . . Miscellaneous . | . . . . . . . . . . . . . . . . . . . . . . Route ------- -11/Scrapyard -10/Materials (discovered 5 exits: *Mat x3 / *Min x2) -10/Mines (discovered 3 exits: *Mat x2 / [*Exi]) -9/Materials (discovered 4 exits: *Mat x2 / *Min x2) -8/Materials (discovered 2 exits: *Fac x2) -7/Factory -7/Waste -7/Factory (discovered 2 exits: *Fac / *Low) -7/Lower Caves -7/Lower Caves -7/Data Miner -6/Proximity Caves -6/Factory (discovered 6 exits: Fac x4 / *Low x2) -6/Lower Caves -6/Lower Caves -5/Factory (discovered 8 exits: *Fac x4 / *Upp x2 / Ext x2) -5/Upper Caves -5/Upper Caves (discovered 2 exits: Fac / *War) -5/Warlord -4/Proximity Caves -4/Factory -4/Armory History --------- Turn | Location | Event 6 | -11/Scrapyard | Discovered new exit (range 16) 246 | -11/Scrapyard | Entered Materials 304 | -10/Materials | Build established: Mutant 366 | -10/Materials | Discovered new exit (range 12) 746 | -10/Materials | Derelicts attacked the area 1624 | -10/Materials | Lost 3 parts (1p1n1w) 1653 | -10/Materials | Discovered new exit (range 11) 1795 | -10/Materials | Discovered new exit (range 16) 1886 | -10/Materials | Core integrity fell below 50% 2045 | -10/Materials | Discovered new exit (range 9) 2083 | -10/Materials | Discovered new exit (range 8) 2184 | -10/Materials | Entered Mines 2246 | -10/Mines | Learned 2 Materials zone layouts 2276 | -10/Mines | Learned 2 Materials zone layouts 2321 | -10/Mines | Deemed a non-threat by the Exiles lab entrance 2322 | -10/Mines | Discovered new exit (range 5) 2368 | -10/Mines | Joined a pair of Derelicts in attacking an 0b10 outpost 2398 | -10/Mines | Core integrity fell below 20% 2621 | -10/Mines | Assisted by bots powering up and referring to "LRC-V3" 2677 | -10/Mines | Discovered new exit (range 10) 2709 | -10/Mines | Build established: Scavenger-Mutant 2845 | -10/Mines | Received a Mining Laser from a helpful Derelict 3138 | -10/Mines | Discovered new exit (range 7) 3148 | -10/Mines | Learned Materials security intel 3181 | -10/Mines | Found a damaged Exp. Sensor Array with a note attached 3187 | -10/Mines | Found Prototype Device 3598 | -10/Mines | Entered Materials 3598 | -9/Materials | Evolved 2 slots: Utility x2 3963 | -9/Materials | Central database locked down 4571 | -9/Materials | Discovered new exit (range 10) 4913 | -9/Materials | Build established: Mutant 5639 | -9/Materials | Discovered new exit (range 7) 5827 | -9/Materials | Repaired Spread Laser+ 5968 | -9/Materials | Identified exit to Mines 6160 | -9/Materials | Entered another Materials area 6160 | -8/Materials | Evolved 2 slots: Propulsion x2 6262 | -8/Materials | Discovered new exit (range 16) 7089 | -8/Materials | Central database locked down 7495 | -8/Materials | Discovered new exit (range 16) 7904 | -8/Materials | Entered Factory 7904 | -7/Factory | Evolved 2 slots: Propulsion x1, Utility x1 7921 | -7/Factory | Identified Exp. Sensor Array 8190 | -7/Factory | Build established: Hacker-Mutant 8217 | -7/Factory | Discovered new exit (range 7) 8256 | -7/Factory | Manually triggered Chute Trap 8256 | -7/Factory | Sucked down chute 8256 | -7/Factory | Entered Waste 8271 | -7/Waste | EMP discharged 8281 | -7/Waste | Spotted C-40 Crusher 8287 | -7/Waste | Spotted C-40 Crusher 8287 | -7/Waste | Spotted C-40 Crusher 8290 | -7/Waste | Spotted C-40 Crusher 8312 | -7/Waste | Spotted C-40 Crusher 8313 | -7/Waste | Spotted C-40 Crusher 8323 | -7/Waste | Met Warlord forces unprepared to attack 8326 | -7/Waste | Destroyed C-40 Crusher 8329 | -7/Waste | Destroyed C-40 Crusher 8336 | -7/Waste | Allies destroyed C-40 Crusher 8337 | -7/Waste | Allies destroyed C-40 Crusher 8338 | -7/Waste | Destroyed C-40 Crusher 8340 | -7/Waste | Allies destroyed C-40 Crusher 8346 | -7/Waste | Discovered new exit (range 15) 8352 | -7/Waste | Identified exit to Factory 8361 | -7/Waste | Entered Factory 8361 | -7/Factory | Accompanied by 7 allies 8433 | -7/Factory | Repaired Broken Lance 8576 | -7/Factory | Fabricated Adv. Signal Interpreter (x2) 8685 | -7/Factory | Discovered new exit (range 15) 8698 | -7/Factory | Identified exit to Factory 8880 | -7/Factory | Central database locked down 8981 | -7/Factory | Discovered new exit (range 9) 8990 | -7/Factory | Identified exit to Lower Caves 8998 | -7/Factory | Entered Lower Caves 8998 | -7/Lower Caves | Accompanied by 1 ally 9357 | -7/Lower Caves | Encountered a Warlord checkpoint 9423 | -7/Lower Caves | Learned Factory garrison access intel 9499 | -7/Lower Caves | Discovered new exit (range 8) 9647 | -7/Lower Caves | Identified exit to Lower Caves 9659 | -7/Lower Caves | Entered another Lower Caves area 9871 | -7/Lower Caves | Discovered new exit (range 9) 9874 | -7/Lower Caves | Identified exit to Data Miner 9895 | -7/Lower Caves | Encountered a Warlord checkpoint 9899 | -7/Lower Caves | Learned 8 Factory zone layouts 10068 | -7/Lower Caves | Entered Data Miner 10070 | -7/Data Miner | Discovered new exit (range 7) 10079 | -7/Data Miner | Met Data Miner 10087 | -7/Data Miner | Learned location of Section 7 (-2) 10087 | -7/Data Miner | Acquired the access code to Warlord's prototype stash 10095 | -7/Data Miner | Received God Mode back door access code from Data Miner 10099 | -7/Data Miner | Destroyed Data Miner 10103 | -7/Data Miner | Found Prototype Hackware 10104 | -7/Data Miner | Found Prototype Hackware 10106 | -7/Data Miner | Found Prototype Hackware 10107 | -7/Data Miner | Interfaced with the Data Conduit 10522 | -7/Data Miner | Identified exit to Proximity Caves 10522 | -7/Data Miner | Entered Proximity Caves 10693 | -6/Proximity Caves | Spotted B-75 Beast 10803 | -6/Proximity Caves | Learned Factory garrison access intel 10908 | -6/Proximity Caves | Discovered exit to Factory (range 8) 10910 | -6/Proximity Caves | Entered Factory 10910 | -6/Factory | Evolved 2 slots: Utility x1, Weapon x1 10911 | -6/Factory | Identified exit to Factory 10912 | -6/Factory | Loaded intel: 311 machine locations 10913 | -6/Factory | Loaded intel: 4 garrison access locations 11005 | -6/Factory | Identified exit to Lower Caves 11010 | -6/Factory | Identified System Mapper 11159 | -6/Factory | Identified Deep Network Scanner 11160 | -6/Factory | Identified Quantum Router 11190 | -6/Factory | Lost 3 parts (2n1u) 11261 | -6/Factory | Entered Lower Caves 11262 | -6/Lower Caves | Encountered a Warlord checkpoint 11304 | -6/Lower Caves | Learned Factory security intel 11358 | -6/Lower Caves | Discovered new exit (range 9) 11361 | -6/Lower Caves | Identified exit to Lower Caves 11367 | -6/Lower Caves | Entered another Lower Caves area 11371 | -6/Lower Caves | Discovered exit to Factory (range 2) 11373 | -6/Lower Caves | Entered Factory 11373 | -5/Factory | Evolved 2 slots: Utility x2 11375 | -5/Factory | Loaded intel: 277 machine locations 11376 | -5/Factory | Loaded intel: 4 garrison access locations 11403 | -5/Factory | Identified exit to Factory 11403 | -5/Factory | Identified exit to Upper Caves 11403 | -5/Factory | Identified exit to Extension 11452 | -5/Factory | Build established: Wizard-Mutant 11518 | -5/Factory | Central database locked down 11537 | -5/Factory | Spotted B-75 Beast 11590 | -5/Factory | Repaired Hvy. Ion Engine 11597 | -5/Factory | Fabricated Lrn. Sensor Array? 11700 | -5/Factory | Lost 7 parts (1p3n1u2w) 11705 | -5/Factory | Entered Upper Caves 11938 | -5/Upper Caves | Entered a destroyed Warlord outpost 12397 | -5/Upper Caves | Discovered new exit (range 7) 12399 | -5/Upper Caves | Identified exit to Upper Caves 12400 | -5/Upper Caves | Entered another Upper Caves area 12405 | -5/Upper Caves | Learned Factory terminal intel 12466 | -5/Upper Caves | Attracted the attention of an 0b10 checkpoint 12584 | -5/Upper Caves | Discovered new exit (range 13) 12585 | -5/Upper Caves | Attracted the attention of an 0b10 outpost 12589 | -5/Upper Caves | Identified exit to Warlord 12590 | -5/Upper Caves | Entered Warlord 12750 | -5/Warlord | Met Warlord 12775 | -5/Warlord | Warlord's base attacked by MAIN.C 12858 | -5/Warlord | Found Prototype Energy Cannon 12858 | -5/Warlord | Identified Vortex Driver 12963 | -5/Warlord | Opened Warlord's prototype stash 12980 | -5/Warlord | Found Exp. Core Analyzer 12982 | -5/Warlord | Found Exp. Focal Shield 12987 | -5/Warlord | Found Vortex Chain Reactor 12992 | -5/Warlord | Found Exp. Cloaking Device 13056 | -5/Warlord | Found Prototype Special Weapon 13058 | -5/Warlord | Found Prototype Special Weapon 13060 | -5/Warlord | Found Prototype Special Weapon 13062 | -5/Warlord | Found Prototype Special Weapon 13064 | -5/Warlord | Found Prototype Special Weapon 13066 | -5/Warlord | Found Prototype Special Weapon 13080 | -5/Warlord | Identified RU-N14's Throwing Claymores v3 (x6) 13125 | -5/Warlord | Warlord forces counterattacked 13148 | -5/Warlord | Found Vortex Driver 13283 | -5/Warlord | Spotted Striker 13289 | -5/Warlord | Spotted Executioner 13296 | -5/Warlord | Destroyed Striker 13302 | -5/Warlord | Destroyed Executioner 13323 | -5/Warlord | Destroyed 7 combat bots 13336 | -5/Warlord | Lost 9 allies 13450 | -5/Warlord | Warlord base infiltrated, sounded retreat 13594 | -5/Warlord | Build established: Wizard-Skirmisher 13595 | -5/Warlord | Lost 3 allies 13597 | -5/Warlord | Spotted Striker 13608 | -5/Warlord | Spotted Striker 13634 | -5/Warlord | Spotted Executioner 13661 | -5/Warlord | Lost 12 allies 13686 | -5/Warlord | Discovered new exit (range 8) 13692 | -5/Warlord | Identified exit to Proximity Caves 13693 | -5/Warlord | Entered Proximity Caves 13770 | -4/Proximity Caves | Attracted the attention of an 0b10 checkpoint 14029 | -4/Proximity Caves | Core integrity fell below 50% 14099 | -4/Proximity Caves | Crushed by falling debris 14373 | -4/Proximity Caves | Build established: Hacker-Skirmisher 14406 | -4/Proximity Caves | Discovered exit to Factory (range 14) 14419 | -4/Proximity Caves | Entered Factory 14419 | -4/Factory | Evolved 2 slots: Power x1, Weapon x1 14420 | -4/Factory | Loaded intel: 282 machine locations 14421 | -4/Factory | Loaded intel: 26 terminal locations 14682 | -4/Factory | Fabricated Exp. Utility Shielding? 14715 | -4/Factory | Build established: Scavenger-Skirmisher 14947 | -4/Factory | Lost 4 parts (1u3w) 15484 | -4/Factory | Fabricated Prc. Energy Filter (x1) 15670 | -4/Factory | Discovered new exit (range 12) 15697 | -4/Factory | Identified exit to Armory 15702 | -4/Factory | Core integrity fell below 50% 15706 | -4/Factory | Entered Armory 15707 | -4/Armory | Met VL-GR5, who suggested a friendly competition 15707 | -4/Armory | Loaded intel: 94 machine locations 15736 | -4/Armory | Lost 11 parts (1p4n4u2w) 15968 | -4/Armory | Build established: Mutant 16148 | -4/Armory | Core integrity fell below 20% 16167 | -4/Armory | Attacked by bots powering up and referring to "LRC-V3" 16645 | -4/Armory | Found Gamma Bomb Array 16650 | -4/Armory | Destroyed by G-67 Veteran with Field Laser Last Messages --------------- 16553_ Acquired Lgt. Antimatter Reactor. 16565_ Acquired Tesla Rifle. 16566_ Acquired 13 matter. 16569_ System corrupted: Heat flow error (+135). 16570_ Acquired Hpw. Shock Rifle. 16580_ O-16 Technician: "IFF HANDSHAKE FAILED. SECURING TERMINAL." 16589_ ALERT: Hostiles spotted, dispatching reinforcements to Terminal A004. 16599_ System corrupted: Energy discharge (-48). 16628_ System corrupted: Substantial component data lost. 16636_ Dropped Mic. Fission Core. 16638_ Compression Vault explodes. 16638_ O-16 Technician destroyed. 16638_ Compression Vault explodes. 16638_ L-61 Swordsman destroyed. 16640_ Compression Vault explodes. 16643_ Dropped Hpw. Shock Rifle. 16645_ Acquired Gamma Bomb Array. 16648_ I5KY RVR7QE%GEIJ>HJ%XQ |50LR,17MQ0K 16648_ Dropped Lgt. Antimatter Reactor. Map ----- +----------------------------------------------------+ | ?????????????????????????????????????????????????? | | ?????????????????????????????????????????????????? | | ?????????????????????????????????????????????????? | | ?????????????????????????????????????????????????? | | ?????????????????????????????????#???????????????? | | ?????????????????????????????????????????????????? | | ?????????????????????????????????????????????????? | | ????????????????#????????????????????????????????? | | ?????????????????????????????????????????????????? | | ??????????????????#????#?????????????????????????? | | ??????????????????????????#??????????????????????? | | ????????????#????????????????????????????????????? | | ?????????????????????????????????????????????????? | | ???????????????????"""???? ????#?????????????????? | | ???????????????????"""???????????????????????????? | | ???????????????????"""???????????????????????????? | | ????????????????????????????????????????????#????? | | ??????????????????????"""?? ?#???????????????????? | | ???????????????????????Y"????????????????????????? | | ??????????????????????"""??????????#??#??????????? | | ??????"""?"""?????? ?????######????????????#?????? | | ??????"""?"""?#?????#+##+# #??????????????????? | | ??????"""?"""???????# # ]] #??????????????????? | | ??????"""?"""?##????# # ]] #????????#?????????? | | ??????"""?"""?# ?#?# # ]] #??????????????????? | | ????????? ??????# ?# @*]] #??????????????????? | | ????? ??? ???### # # ] #??????????????????? | | ????????????### #[]] #???#?????#????????? | | ????????? g gg #??????#??#????????? | | ????????? g #?????#???#????????? | | ???#??????T g #####??????????????????? | | ????????? * #??????????????????????? | | ????????? ##??????????????????????? | | ???????? #???????????????????????? | | ????????? #???????????????????????? | | ??????????""" #????????????????#????##? | | ????? ????""" ##?????????#?#??????????? | | ????????? """ ##??#????#???#????#??#??? | | ?? ???? g #????????#???#???#??????? | | ???????# ! #????##?#???????#???????? | | ???????????##+######### #?#?#??#?#??????????????? | | ???????????????? ????# ###???#?????????????????? | | ???#??????? ??????????# #???#?????????#?????????? | | ?????????#????????????# #??#?????#??#?#??####???? | | ? ???? ????""""""???### ##?##??#??????#??#??????? | | ????? ????" "" "????# ! ##?#???#??#???##?#????#? | | ???????????"?""?" ??##= #?#????????#???#???????? | | ???#???????"????"????# T #?#?????????#????#?#?#?? | | ????? ?????""""""????#* #?#??#?#?????#????#????? | | ??????????????????#??## ##???????#??#??#?#??#?#?? | +----------------------------------------------------+ Best States ------------- Heat Dissipation 100 Coolant Potential 100 Energy Generation 55 Energy Capacity 700 Matter Stores 300 Matter Capacity 300 Sight Range 16 Robot Scan Range 20 Terrain Scan Range 24 Terrain Scan Density 10 Armor Coverage 300 Resistance: KI 30 Resistance: EM 20 Utility Shielding 90 Evasion (%) 57 Armor Integrity Analysis 30 Recoil Reduction 4 Salvage Targeting 4 Offensive Hacking 65 Defensive Hacking 25 Authchip Count 3 Item Schematics ----------------- Signal Interpreter | -7/Factory | Hacked Combat Drone Bay | -7/Data Miner | Free Lgt. Regenerative Plating | -7/Data Miner | Free Cld. Cesium-ion Thruster | -7/Data Miner | Free Gravity Neutralizer | -7/Data Miner | Free Imp. Lightning Gun | -7/Data Miner | Free Antigrav System | -7/Data Miner | Free Imp. Kinecellerator | -7/Data Miner | Free Imp. Remote Datajack | -7/Data Miner | Free Plasma Rifle | -7/Data Miner | Free Arm. Medium Treads | -7/Data Miner | Free Dispersion Rifle | -7/Data Miner | Free Matter Neutralizer | -7/Data Miner | Free Weapon Mount | -6/Factory | Hacked Hvy. Reactive Plating | -6/Factory | Hacked Exp. Utility Shielding | -6/Factory | Hacked Adv. Medium Treads | -6/Factory | Hacked Imp. Gravmag System | -6/Factory | Hacked Lrn. Terrain Scanner | -6/Factory | Hacked Imp. Armor Integrity Analyzer | -5/Factory | Hacked Lrn. Sensor Array | -5/Factory | Hacked Prc. Energy Filter | -5/Factory | Hacked Robot Schematics ------------------ O-24 Administrator | -7/Data Miner | Free M-28 Smith | -7/Data Miner | Free G-50 Soldier | -7/Data Miner | Free M-14 Sweeper | -7/Data Miner | Free Y-64 Sentinel | -7/Data Miner | Free A-15 Conveyor | -7/Data Miner | Free Fabricated ------------ Adv. Signal Interpreter | x2 | -7/Factory | Preloaded Lrn. Sensor Array | x2 | -5/Factory | Authchip Exp. Utility Shielding | x1 | -4/Factory Prc. Energy Filter | x1 | -4/Factory Repaired ---------- Spread Laser | 23% | -9/Materials Lance | 58% | -7/Factory | Broken Hvy. Ion Engine | 1% | -5/Factory Studied --------- Spread Laser | -9/Materials | Hacked Airjet | -7/Factory | Hacked Alien Tech Used ----------------- None Achievements -------------- Deductive Reasoning Ew, Corruption Freedom! Ghost 'Em Plot Armor Protector Tune-up Challenges ------------ None Game ------ Seed BattleTerrorRail Manual? 0 Play Time 02:42:06 Cumulative 493.2 hours Start 2025.10.29 @ 00:44:11 End 2025.10.30 @ 09:07:23 Sessions 5 Manual Loads 0 Difficulty Rogue Special Mode None Game No. 233 Rogue 233 Adventurer 0 Explorer 0 Win Type - Total 8 Types 6/0/1/0/0/0/1/0/0/0 Lore% 66 Gallery% 72 Achievement% 45 Wizard Run 0 Options --------- Layout 0 ASCII 0 Keyboard 1 Movement Vi Keybinds 0 Fullscreen 2 Font 18/SmallcapsGlow Map View 76x50 Zoom Use 0% Tactical HUD 1 Map Filters NONE Filters NONE Steam 1 RUN: f521e8f7-84f1-404a-b037-c6ec23224f37